[Event "Late Titled Tuesday Blitz February 8 2022"]
[White "Beulen, Marcel"]
[Black "Milosevic, Milos"]
[WhiteFideId "1001450"]
[BlackFideId "964875"]
[WhiteElo "2356"]
[BlackElo "2198"]
[Result "0-1"]
[Round "09"]
[TimeControl "180+1"]
[Date "2022.02.09"]
[WhiteClock "0:00:23"]
[BlackClock "0:00:59"]

1. e4 {[%clk 0:03:00]}  a6 {[%clk 0:03:00]} 2. d4 {[%clk 0:03:00]}  c5 {[%clk 0:02:58]} 3. c3 {[%clk 0:02:57]}  e6 {[%clk 0:02:55]} 4. Nf3 {[%clk 0:02:51]}  d5 {[%clk 0:02:52]} 5. exd5 {[%clk 0:02:28]}  Qxd5 {[%clk 0:02:50]} 6. Be3 {[%clk 0:02:25]}  cxd4 {[%clk 0:02:45]} 7. Qxd4 {[%clk 0:02:21]}  Nf6 {[%clk 0:02:41]} 8. Nbd2 {[%clk 0:02:18]}  Nc6 {[%clk 0:02:40]} 9. Qxd5 {[%clk 0:02:12]}  Nxd5 {[%clk 0:02:38]} 10. Bg5 {[%clk 0:02:12]}  f6 {[%clk 0:02:37]} 11. Bh4 {[%clk 0:02:11]}  h5 {[%clk 0:02:35]} 12. h3 {[%clk 0:02:09]}  e5 {[%clk 0:02:33]} 13. O-O-O {[%clk 0:02:02]}  Be6 {[%clk 0:02:32]} 14. Ne4 {[%clk 0:01:53]}  O-O-O {[%clk 0:02:28]} 15. Bc4 {[%clk 0:01:42]}  Be7 {[%clk 0:02:26]} 16. Bg3 {[%clk 0:01:37]}  g5 {[%clk 0:02:08]} 17. Rhe1 {[%clk 0:01:12]}  Nf4 {[%clk 0:01:59]} 18. Bxe6+ {[%clk 0:01:04]}  Nxe6 {[%clk 0:02:00]} 19. Rxd8+ {[%clk 0:01:00]}  Rxd8 {[%clk 0:02:00]} 20. Rd1 {[%clk 0:00:58]}  Rxd1+ {[%clk 0:01:59]} 21. Kxd1 {[%clk 0:00:59]}  h4 {[%clk 0:01:58]} 22. Bh2 {[%clk 0:00:58]}  Nc5 {[%clk 0:01:58]} 23. Nxc5 {[%clk 0:00:56]}  Bxc5 {[%clk 0:01:59]} 24. Ke2 {[%clk 0:00:57]}  Kd7 {[%clk 0:01:56]} 25. g3 {[%clk 0:00:55]}  hxg3 {[%clk 0:01:55]} 26. Bxg3 {[%clk 0:00:55]}  e4 {[%clk 0:01:52]} 27. Nd2 {[%clk 0:00:51]}  f5 {[%clk 0:01:53]} 28. f3 {[%clk 0:00:50]}  e3 {[%clk 0:01:29]} 29. Nb3 {[%clk 0:00:49]}  Bb6 {[%clk 0:01:29]} 30. f4 {[%clk 0:00:49]}  g4 {[%clk 0:01:26]} 31. hxg4 {[%clk 0:00:48]}  fxg4 {[%clk 0:01:27]} 32. f5 {[%clk 0:00:47]}  Ne7 {[%clk 0:01:25]} 33. f6 {[%clk 0:00:43]}  Nf5 {[%clk 0:01:26]} 34. Bf4 {[%clk 0:00:42]}  g3 {[%clk 0:01:18]} 35. Kf3 {[%clk 0:00:34]}  e2 {[%clk 0:01:11]} 36. Kxe2 {[%clk 0:00:33]}  g2 {[%clk 0:01:11]} 37. Bh2 {[%clk 0:00:31]}  g1=Q {[%clk 0:01:11]} 38. Bxg1 {[%clk 0:00:32]}  Bxg1 {[%clk 0:01:11]} 39. Nd2 {[%clk 0:00:31]}  Ke6 {[%clk 0:01:08]} 40. Kd3 {[%clk 0:00:31]}  Kxf6 {[%clk 0:01:08]} 41. Kc4 {[%clk 0:00:31]}  Ne3+ {[%clk 0:01:06]} 42. Kb4 {[%clk 0:00:28]}  Nd1 {[%clk 0:01:03]} 43. b3 {[%clk 0:00:28]}  Ke5 {[%clk 0:01:02]} 44. c4 {[%clk 0:00:26]}  Bf2 {[%clk 0:00:59]} 45. a4 {[%clk 0:00:23]}  Be1 {[%clk 0:00:59]} 0-1


[Site "https://www.chess.com"]

[Event "Late Titled Tuesday Blitz February 8 2022"]
[White "Bortnyk, Olexandr"]
[Black "Punin, Andrii"]
[WhiteFideId "14120828"]
[BlackFideId "14112639"]
[WhiteElo "2723"]
[BlackElo "2357"]
[Result "1-0"]
[Round "09"]
[TimeControl "180+1"]
[Date "2022.02.08"]
[WhiteClock "0:00:39"]
[BlackClock "0:00:07"]

1. e4 {[%clk 0:02:58]}  e6 {[%clk 0:02:59]} 2. d4 {[%clk 0:02:57]}  d5 {[%clk 0:02:58]} 3. Nc3 {[%clk 0:02:58]}  Bb4 {[%clk 0:02:58]} 4. Qd3 {[%clk 0:02:58]}  dxe4 {[%clk 0:02:47]} 5. Qxe4 {[%clk 0:02:59]}  Nf6 {[%clk 0:02:46]} 6. Qh4 {[%clk 0:03:00]}  Nd5 {[%clk 0:02:26]} 7. Qxd8+ {[%clk 0:02:58]}  Kxd8 {[%clk 0:02:25]} 8. Ne2 {[%clk 0:02:59]}  Nc6 {[%clk 0:02:19]} 9. Bd2 {[%clk 0:02:51]}  Nxc3 {[%clk 0:02:18]} 10. bxc3 {[%clk 0:02:32]}  Ba5 {[%clk 0:02:15]} 11. g3 {[%clk 0:02:21]}  b6 {[%clk 0:02:07]} 12. Bg2 {[%clk 0:02:18]}  Bb7 {[%clk 0:02:07]} 13. O-O {[%clk 0:02:14]}  Kc8 {[%clk 0:02:07]} 14. Rfe1 {[%clk 0:01:55]}  Ne7 {[%clk 0:02:06]} 15. Bh3 {[%clk 0:01:55]}  Kb8 {[%clk 0:01:54]} 16. Rad1 {[%clk 0:01:33]}  a6 {[%clk 0:01:53]} 17. c4 {[%clk 0:01:30]}  Bxd2 {[%clk 0:01:53]} 18. Rxd2 {[%clk 0:01:31]}  Ka7 {[%clk 0:01:52]} 19. Nf4 {[%clk 0:01:24]}  Ng6 {[%clk 0:01:51]} 20. Nh5 {[%clk 0:01:23]}  Rhg8 {[%clk 0:01:48]} 21. d5 {[%clk 0:01:20]}  Rad8 {[%clk 0:01:44]} 22. Bg2 {[%clk 0:01:13]}  exd5 {[%clk 0:01:35]} 23. cxd5 {[%clk 0:01:13]}  Bc8 {[%clk 0:01:16]} 24. h3 {[%clk 0:01:10]}  Rd6 {[%clk 0:01:07]} 25. c4 {[%clk 0:01:09]}  Bd7 {[%clk 0:01:04]} 26. f4 {[%clk 0:00:59]}  Nf8 {[%clk 0:00:45]} 27. g4 {[%clk 0:00:59]}  g6 {[%clk 0:00:34]} 28. Ng3 {[%clk 0:00:59]}  Kb8 {[%clk 0:00:26]} 29. Ne4 {[%clk 0:00:58]}  Kc8 {[%clk 0:00:19]} 30. Nxd6+ {[%clk 0:00:58]}  cxd6 {[%clk 0:00:20]} 31. Re7 {[%clk 0:00:58]}  Rg7 {[%clk 0:00:18]} 32. g5 {[%clk 0:00:51]}  Kd8 {[%clk 0:00:18]} 33. Rde2 {[%clk 0:00:52]}  b5 {[%clk 0:00:10]} 34. cxb5 {[%clk 0:00:53]}  axb5 {[%clk 0:00:10]} 35. R2e3 {[%clk 0:00:51]}  h5 {[%clk 0:00:07]} 36. gxh6 {[%clk 0:00:39]}  Rh7 {[%clk 0:00:07]} 37. Bf1 {[%clk 0:00:39]} 1-0


[Site "https://www.chess.com"]

[Event "Late Titled Tuesday Blitz February 8 2022"]
[White "Calcada, Lucas Galvan"]
[Black "Sarkar, Justin"]
[WhiteFideId "22746099"]
[BlackFideId "2010011"]
[WhiteElo "1402"]
[BlackElo "2038"]
[Result "1-0"]
[Round "09"]
[TimeControl "180+1"]
[Date "2022.02.09"]
[WhiteClock "0:01:48"]
[BlackClock "0:00:26"]

1. d4 {[%clk 0:03:00]}  Nf6 {[%clk 0:02:56]} 2. c4 {[%clk 0:03:00]}  e6 {[%clk 0:02:54]} 3. Nc3 {[%clk 0:03:00]}  d5 {[%clk 0:02:46]} 4. Nf3 {[%clk 0:02:59]}  Be7 {[%clk 0:02:44]} 5. Bf4 {[%clk 0:02:59]}  c5 {[%clk 0:02:43]} 6. dxc5 {[%clk 0:02:59]}  Na6 {[%clk 0:02:43]} 7. e3 {[%clk 0:02:56]}  Nxc5 {[%clk 0:02:39]} 8. Be2 {[%clk 0:02:55]}  O-O {[%clk 0:02:37]} 9. O-O {[%clk 0:02:54]}  dxc4 {[%clk 0:02:33]} 10. Bxc4 {[%clk 0:02:51]}  a6 {[%clk 0:01:41]} 11. Qe2 {[%clk 0:02:47]}  b5 {[%clk 0:01:38]} 12. Rfd1 {[%clk 0:02:44]}  Qb6 {[%clk 0:01:36]} 13. Bd3 {[%clk 0:02:33]}  b4 {[%clk 0:01:30]} 14. Nb1 {[%clk 0:02:29]}  Nxd3 {[%clk 0:01:28]} 15. Rxd3 {[%clk 0:02:27]}  a5 {[%clk 0:01:25]} 16. Rd4 {[%clk 0:02:07]}  Ba6 {[%clk 0:01:18]} 17. Qd1 {[%clk 0:02:06]}  Rac8 {[%clk 0:01:12]} 18. Nbd2 {[%clk 0:02:05]}  Nd5 {[%clk 0:01:07]} 19. Bg3 {[%clk 0:02:03]}  Rfd8 {[%clk 0:00:37]} 20. Ne4 {[%clk 0:01:54]}  f5 {[%clk 0:00:30]} 21. Neg5 {[%clk 0:01:52]}  h6 {[%clk 0:00:27]} 22. Nh3 {[%clk 0:01:49]}  g5 {[%clk 0:00:26]} 23. Ne5 {[%clk 0:01:48]} 1-0


[Site "https://www.chess.com"]

[Event "Late Titled Tuesday Blitz February 8 2022"]
[White "Carbone, Diego"]
[Black "Musovic, Armin"]
[WhiteFideId "3002179"]
[BlackFideId "939935"]
[WhiteElo "2199"]
[BlackElo "2250"]
[Result "1-0"]
[Round "09"]
[TimeControl "180+1"]
[Date "2022.02.09"]
[WhiteClock "0:00:26"]
[BlackClock "0:00:13"]

1. d4 {[%clk 0:03:00]}  d5 {[%clk 0:02:56]} 2. c4 {[%clk 0:02:59]}  c5 {[%clk 0:02:57]} 3. Nf3 {[%clk 0:02:58]}  Nf6 {[%clk 0:02:57]} 4. cxd5 {[%clk 0:02:56]}  cxd4 {[%clk 0:02:56]} 5. Qxd4 {[%clk 0:02:53]}  Qxd5 {[%clk 0:02:57]} 6. Nc3 {[%clk 0:02:53]}  Qxd4 {[%clk 0:02:57]} 7. Nxd4 {[%clk 0:02:54]}  a6 {[%clk 0:02:58]} 8. Bf4 {[%clk 0:02:50]}  Nbd7 {[%clk 0:02:57]} 9. Bg3 {[%clk 0:02:10]}  e5 {[%clk 0:02:50]} 10. Nf3 {[%clk 0:02:10]}  e4 {[%clk 0:02:50]} 11. Nd2 {[%clk 0:02:10]}  e3 {[%clk 0:02:50]} 12. fxe3 {[%clk 0:02:08]}  Bb4 {[%clk 0:02:51]} 13. Rc1 {[%clk 0:02:05]}  O-O {[%clk 0:02:44]} 14. a3 {[%clk 0:02:05]}  Bxc3 {[%clk 0:02:39]} 15. Rxc3 {[%clk 0:02:06]}  Re8 {[%clk 0:02:40]} 16. e4 {[%clk 0:02:03]}  Nxe4 {[%clk 0:02:28]} 17. Nxe4 {[%clk 0:02:00]}  Rxe4 {[%clk 0:02:29]} 18. Bf2 {[%clk 0:01:56]}  Nf6 {[%clk 0:02:12]} 19. g3 {[%clk 0:01:53]}  Ng4 {[%clk 0:02:00]} 20. Bg2 {[%clk 0:01:49]}  Nxf2 {[%clk 0:01:52]} 21. Kxf2 {[%clk 0:01:50]}  Re7 {[%clk 0:01:36]} 22. Rhc1 {[%clk 0:01:47]}  Bg4 {[%clk 0:01:35]} 23. h3 {[%clk 0:01:45]}  Be6 {[%clk 0:01:13]} 24. Rc7 {[%clk 0:01:42]}  Rae8 {[%clk 0:01:07]} 25. Rxb7 {[%clk 0:01:41]}  Rxb7 {[%clk 0:01:07]} 26. Bxb7 {[%clk 0:01:42]}  Rb8 {[%clk 0:01:08]} 27. Rc7 {[%clk 0:01:33]}  Bxh3 {[%clk 0:01:08]} 28. b4 {[%clk 0:01:30]}  h5 {[%clk 0:01:04]} 29. Bxa6 {[%clk 0:01:29]}  g5 {[%clk 0:01:04]} 30. Bc4 {[%clk 0:01:22]}  Be6 {[%clk 0:01:01]} 31. Bxe6 {[%clk 0:01:22]}  fxe6 {[%clk 0:01:02]} 32. Rc5 {[%clk 0:01:23]}  Rf8+ {[%clk 0:01:01]} 33. Ke3 {[%clk 0:01:21]}  Ra8 {[%clk 0:00:48]} 34. Rxg5+ {[%clk 0:01:21]}  Kf7 {[%clk 0:00:49]} 35. Ra5 {[%clk 0:01:21]}  Rh8 {[%clk 0:00:49]} 36. Ra7+ {[%clk 0:01:20]}  Kf6 {[%clk 0:00:49]} 37. b5 {[%clk 0:01:20]}  Rg8 {[%clk 0:00:45]} 38. Kf3 {[%clk 0:01:18]}  Rg5 {[%clk 0:00:46]} 39. a4 {[%clk 0:01:18]}  Rf5+ {[%clk 0:00:47]} 40. Ke3 {[%clk 0:01:05]}  Rg5 {[%clk 0:00:44]} 41. Kf2 {[%clk 0:01:00]}  Rf5+ {[%clk 0:00:43]} 42. Kg2 {[%clk 0:01:00]}  Re5 {[%clk 0:00:44]} 43. b6 {[%clk 0:00:50]}  Rxe2+ {[%clk 0:00:43]} 44. Kh3 {[%clk 0:00:51]}  Rb2 {[%clk 0:00:35]} 45. b7 {[%clk 0:00:50]}  e5 {[%clk 0:00:32]} 46. a5 {[%clk 0:00:47]}  Kf5 {[%clk 0:00:25]} 47. a6 {[%clk 0:00:47]}  h4 {[%clk 0:00:17]} 48. Ra8 {[%clk 0:00:40]}  Rb3 {[%clk 0:00:12]} 49. Kxh4 {[%clk 0:00:29]}  Rb1 {[%clk 0:00:12]} 50. Kh3 {[%clk 0:00:29]}  Rh1+ {[%clk 0:00:11]} 51. Kg2 {[%clk 0:00:29]}  Ra1 {[%clk 0:00:12]} 52. a7 {[%clk 0:00:26]}  Ra2+ {[%clk 0:00:13]} 53. Kh3 {[%clk 0:00:26]} 1-0


[Site "https://www.chess.com"]

[Event "Late Titled Tuesday Blitz February 8 2022"]
[White "Cupid, Kevin"]
[Black "Aaditya Dhingra"]
[WhiteFideId "7700512"]
[BlackFideId "25678191"]
[WhiteElo "2096"]
[BlackElo "1789"]
[Result "0-1"]
[Round "09"]
[TimeControl "180+1"]
[Date "2022.02.09"]
[WhiteClock "0:00:08"]
[BlackClock "0:00:03"]

1. d4 {[%clk 0:02:59]}  d5 {[%clk 0:02:58]} 2. c4 {[%clk 0:02:59]}  e6 {[%clk 0:02:58]} 3. Nc3 {[%clk 0:03:00]}  Be7 {[%clk 0:02:54]} 4. Nf3 {[%clk 0:03:00]}  Nf6 {[%clk 0:02:53]} 5. Bg5 {[%clk 0:02:59]}  O-O {[%clk 0:02:51]} 6. e3 {[%clk 0:02:57]}  h6 {[%clk 0:02:50]} 7. Bh4 {[%clk 0:02:57]}  Ne4 {[%clk 0:02:49]} 8. Bxe7 {[%clk 0:02:56]}  Qxe7 {[%clk 0:02:50]} 9. Bd3 {[%clk 0:02:56]}  Nxc3 {[%clk 0:02:48]} 10. bxc3 {[%clk 0:02:56]}  dxc4 {[%clk 0:02:44]} 11. Bxc4 {[%clk 0:02:56]}  c5 {[%clk 0:02:45]} 12. O-O {[%clk 0:02:54]}  Nc6 {[%clk 0:02:44]} 13. Rb1 {[%clk 0:02:54]}  b6 {[%clk 0:02:42]} 14. Qe2 {[%clk 0:02:41]}  Rd8 {[%clk 0:02:35]} 15. Rfc1 {[%clk 0:02:35]}  Bb7 {[%clk 0:02:30]} 16. Ba6 {[%clk 0:02:35]}  Na5 {[%clk 0:02:19]} 17. Bxb7 {[%clk 0:02:16]}  Nxb7 {[%clk 0:02:18]} 18. Qb5 {[%clk 0:02:14]}  Rac8 {[%clk 0:02:15]} 19. Ne5 {[%clk 0:02:10]}  Qc7 {[%clk 0:02:10]} 20. Nd3 {[%clk 0:02:01]}  Nd6 {[%clk 0:02:06]} 21. Qa6 {[%clk 0:02:00]}  c4 {[%clk 0:02:01]} 22. Ne5 {[%clk 0:01:59]}  f6 {[%clk 0:01:56]} 23. Nf3 {[%clk 0:01:58]}  Ne4 {[%clk 0:01:52]} 24. Rb2 {[%clk 0:01:57]}  Rd5 {[%clk 0:01:49]} 25. Qa4 {[%clk 0:01:54]}  Rh5 {[%clk 0:01:38]} 26. h3 {[%clk 0:01:43]}  Ng5 {[%clk 0:01:28]} 27. Nd2 {[%clk 0:01:29]}  Nf7 {[%clk 0:01:05]} 28. Rb4 {[%clk 0:01:22]}  Nd6 {[%clk 0:01:02]} 29. Qc2 {[%clk 0:01:18]}  a5 {[%clk 0:00:59]} 30. Rb2 {[%clk 0:01:17]}  e5 {[%clk 0:00:58]} 31. a4 {[%clk 0:01:11]}  Rg5 {[%clk 0:00:53]} 32. Ne4 {[%clk 0:00:56]}  Nxe4 {[%clk 0:00:43]} 33. Qxe4 {[%clk 0:00:57]}  exd4 {[%clk 0:00:41]} 34. exd4 {[%clk 0:00:48]}  Rd8 {[%clk 0:00:22]} 35. Rcb1 {[%clk 0:00:46]}  Rd6 {[%clk 0:00:21]} 36. f4 {[%clk 0:00:38]}  Rg3 {[%clk 0:00:15]} 37. Rc1 {[%clk 0:00:35]}  Rd3 {[%clk 0:00:14]} 38. Rb5 {[%clk 0:00:33]}  Kf7 {[%clk 0:00:12]} 39. f5 {[%clk 0:00:29]}  Qe7 {[%clk 0:00:12]} 40. Qxe7+ {[%clk 0:00:21]}  Kxe7 {[%clk 0:00:11]} 41. Kf2 {[%clk 0:00:21]}  Kd7 {[%clk 0:00:11]} 42. Ke2 {[%clk 0:00:20]}  Kc7 {[%clk 0:00:10]} 43. Rc2 {[%clk 0:00:19]}  Rd8 {[%clk 0:00:09]} 44. Kf2 {[%clk 0:00:19]}  Re8 {[%clk 0:00:09]} 45. Rb1 {[%clk 0:00:18]}  Ree3 {[%clk 0:00:07]} 46. Rbc1 {[%clk 0:00:18]}  Kc6 {[%clk 0:00:07]} 47. Kg1 {[%clk 0:00:14]}  Re7 {[%clk 0:00:05]} 48. Rf1 {[%clk 0:00:13]}  Rde3 {[%clk 0:00:05]} 49. Rf4 {[%clk 0:00:12]}  Kd5 {[%clk 0:00:03]} 50. Rb2 {[%clk 0:00:11]}  Kc6 {[%clk 0:00:03]} 51. Rc2 {[%clk 0:00:11]}  Re2 {[%clk 0:00:02]} 52. Rc1 {[%clk 0:00:10]}  Re1+ {[%clk 0:00:02]} 53. Rf1 {[%clk 0:00:10]}  Rxc1 {[%clk 0:00:02]} 54. Rxc1 {[%clk 0:00:09]}  Kd5 {[%clk 0:00:03]} 55. Rb1 {[%clk 0:00:09]}  Kc6 {[%clk 0:00:03]} 56. Rb5 {[%clk 0:00:09]}  Re3 {[%clk 0:00:03]} 57. d5+ {[%clk 0:00:09]}  Kc7 {[%clk 0:00:02]} 58. d6+ {[%clk 0:00:09]}  Kxd6 {[%clk 0:00:03]} 59. Rxb6+ {[%clk 0:00:09]}  Ke5 {[%clk 0:00:04]} 60. Rb5+ {[%clk 0:00:09]}  Kf4 {[%clk 0:00:04]} 61. Rxa5 {[%clk 0:00:10]}  Rxc3 {[%clk 0:00:04]} 62. Kf2 {[%clk 0:00:09]}  Rc2+ {[%clk 0:00:03]} 63. Kf1 {[%clk 0:00:09]}  c3 {[%clk 0:00:04]} 64. Rb5 {[%clk 0:00:09]}  Ke3 {[%clk 0:00:03]} 65. Rb8 {[%clk 0:00:08]}  Rc1# {[%clk 0:00:03]} 0-1


[Site "https://www.chess.com"]

[Event "Late Titled Tuesday Blitz February 8 2022"]
[White "Deac, Bogdan-Daniel"]
[Black "Holt, Conrad"]
[WhiteFideId "1226380"]
[BlackFideId "2034387"]
[WhiteElo "2646"]
[BlackElo "2586"]
[Result "1-0"]
[Round "09"]
[TimeControl "180+1"]
[Date "2022.02.08"]
[WhiteClock "0:00:09"]
[BlackClock "0:00:34"]

1. e4 {[%clk 0:02:45]}  e6 {[%clk 0:03:00]} 2. Qe2 {[%clk 0:02:42]}  e5 {[%clk 0:02:56]} 3. Nf3 {[%clk 0:02:42]}  Nc6 {[%clk 0:02:54]} 4. c3 {[%clk 0:02:42]}  Bc5 {[%clk 0:02:50]} 5. Nxe5 {[%clk 0:02:31]}  Nxe5 {[%clk 0:02:48]} 6. d4 {[%clk 0:02:31]}  Bd6 {[%clk 0:02:45]} 7. dxe5 {[%clk 0:02:30]}  Bxe5 {[%clk 0:02:44]} 8. Nd2 {[%clk 0:02:25]}  d6 {[%clk 0:02:40]} 9. Nc4 {[%clk 0:02:21]}  Bf6 {[%clk 0:02:38]} 10. f4 {[%clk 0:02:20]}  Be6 {[%clk 0:02:28]} 11. Ne3 {[%clk 0:01:58]}  Nh6 {[%clk 0:02:11]} 12. Qh5 {[%clk 0:01:45]}  Qe7 {[%clk 0:02:04]} 13. Bd3 {[%clk 0:01:38]}  c6 {[%clk 0:01:44]} 14. O-O {[%clk 0:00:40]}  O-O-O {[%clk 0:01:42]} 15. Bc2 {[%clk 0:00:32]}  Kb8 {[%clk 0:01:30]} 16. Qf3 {[%clk 0:00:25]}  Bc8 {[%clk 0:01:05]} 17. Bd2 {[%clk 0:00:22]}  g6 {[%clk 0:00:50]} 18. Rae1 {[%clk 0:00:21]}  Bg7 {[%clk 0:00:48]} 19. Nc4 {[%clk 0:00:17]}  d5 {[%clk 0:00:41]} 20. exd5 {[%clk 0:00:17]}  Qc5+ {[%clk 0:00:41]} 21. Ne3 {[%clk 0:00:16]}  Rxd5 {[%clk 0:00:39]} 22. Qf2 {[%clk 0:00:11]}  Ng4 {[%clk 0:00:35]} 23. Nxg4 {[%clk 0:00:10]}  Rxd2 {[%clk 0:00:34]} 24. Qxc5 {[%clk 0:00:09]} 1-0


[Site "https://www.chess.com"]

[Event "Late Titled Tuesday Blitz February 8 2022"]
[White "Dobre, Claudiu-Cristian"]
[Black "Li, Hui"]
[WhiteFideId "1211854"]
[BlackFideId "15400310"]
[WhiteElo "2207"]
[BlackElo "1954"]
[Result "1/2-1/2"]
[Round "09"]
[TimeControl "180+1"]
[Date "2022.02.09"]
[WhiteClock "0:00:12"]
[BlackClock "0:00:10"]

1. c4 {[%clk 0:03:00]}  e6 {[%clk 0:02:57]} 2. Nf3 {[%clk 0:03:00]}  d5 {[%clk 0:02:58]} 3. b3 {[%clk 0:03:00]}  Nf6 {[%clk 0:02:58]} 4. Bb2 {[%clk 0:02:59]}  Be7 {[%clk 0:02:59]} 5. e3 {[%clk 0:03:00]}  O-O {[%clk 0:02:58]} 6. Be2 {[%clk 0:02:58]}  b6 {[%clk 0:02:57]} 7. O-O {[%clk 0:02:57]}  Bb7 {[%clk 0:02:58]} 8. d3 {[%clk 0:02:56]}  Nbd7 {[%clk 0:02:56]} 9. Nc3 {[%clk 0:02:55]}  c5 {[%clk 0:02:54]} 10. Qc2 {[%clk 0:02:55]}  Rc8 {[%clk 0:02:52]} 11. Rad1 {[%clk 0:02:43]}  Qc7 {[%clk 0:02:52]} 12. Qb1 {[%clk 0:02:43]}  Qb8 {[%clk 0:02:50]} 13. Rc1 {[%clk 0:02:40]}  Rfe8 {[%clk 0:02:31]} 14. Rfd1 {[%clk 0:02:38]}  Nf8 {[%clk 0:02:19]} 15. cxd5 {[%clk 0:02:27]}  Nxd5 {[%clk 0:02:13]} 16. Nxd5 {[%clk 0:02:26]}  Bxd5 {[%clk 0:02:12]} 17. d4 {[%clk 0:02:14]}  Ng6 {[%clk 0:02:09]} 18. Qa1 {[%clk 0:01:55]}  cxd4 {[%clk 0:01:51]} 19. Nxd4 {[%clk 0:01:53]}  Bd6 {[%clk 0:01:32]} 20. f4 {[%clk 0:01:24]}  Rxc1 {[%clk 0:01:12]} 21. Rxc1 {[%clk 0:01:23]}  Rc8 {[%clk 0:01:06]} 22. Ba6 {[%clk 0:01:19]}  Bb7 {[%clk 0:00:52]} 23. Bxb7 {[%clk 0:01:17]}  Qxb7 {[%clk 0:00:53]} 24. Rxc8+ {[%clk 0:01:06]}  Qxc8 {[%clk 0:00:53]} 25. Qc1 {[%clk 0:01:06]}  Qxc1+ {[%clk 0:00:51]} 26. Bxc1 {[%clk 0:01:06]}  Bc5 {[%clk 0:00:44]} 27. Ne2 {[%clk 0:00:54]}  Kf8 {[%clk 0:00:39]} 28. Kf2 {[%clk 0:00:55]}  Ke8 {[%clk 0:00:38]} 29. g4 {[%clk 0:00:51]}  Ne7 {[%clk 0:00:34]} 30. Nc3 {[%clk 0:00:48]}  f5 {[%clk 0:00:24]} 31. h3 {[%clk 0:00:42]}  g6 {[%clk 0:00:24]} 32. Nb5 {[%clk 0:00:41]}  Nc6 {[%clk 0:00:17]} 33. a3 {[%clk 0:00:35]}  Kd7 {[%clk 0:00:17]} 34. b4 {[%clk 0:00:35]}  Bd6 {[%clk 0:00:15]} 35. Bb2 {[%clk 0:00:35]}  a6 {[%clk 0:00:14]} 36. Nd4 {[%clk 0:00:29]}  Nxd4 {[%clk 0:00:14]} 37. Bxd4 {[%clk 0:00:29]}  b5 {[%clk 0:00:14]} 38. Kf3 {[%clk 0:00:28]}  Kc6 {[%clk 0:00:13]} 39. e4 {[%clk 0:00:28]}  Kd7 {[%clk 0:00:08]} 40. Ke3 {[%clk 0:00:20]}  Bc7 {[%clk 0:00:08]} 41. Kf3 {[%clk 0:00:19]}  Bd6 {[%clk 0:00:08]} 42. h4 {[%clk 0:00:18]}  Be7 {[%clk 0:00:08]} 43. h5 {[%clk 0:00:17]}  Bd6 {[%clk 0:00:08]} 44. hxg6 {[%clk 0:00:15]}  hxg6 {[%clk 0:00:09]} 45. gxf5 {[%clk 0:00:11]}  gxf5 {[%clk 0:00:09]} 46. Ke3 {[%clk 0:00:11]}  Be7 {[%clk 0:00:08]} 47. Kf3 {[%clk 0:00:12]}  Bd6 {[%clk 0:00:09]} 48. Ke3 {[%clk 0:00:12]}  Be7 {[%clk 0:00:09]} 49. Kf3 {[%clk 0:00:12]}  Bd6 {[%clk 0:00:10]} 1/2-1/2


[Site "https://www.chess.com"]

[Event "Late Titled Tuesday Blitz February 8 2022"]
[White "Dourerassou, Jonathan"]
[Black "Pichot, Alan"]
[WhiteFideId "628050"]
[BlackFideId "110973"]
[WhiteElo "2513"]
[BlackElo "2543"]
[Result "1-0"]
[Round "09"]
[TimeControl "180+1"]
[Date "2022.02.08"]
[WhiteClock "0:00:42"]
[BlackClock "0:00:34"]

1. e4 {[%clk 0:03:00]}  g6 {[%clk 0:02:57]} 2. Nc3 {[%clk 0:02:58]}  Bg7 {[%clk 0:02:58]} 3. h4 {[%clk 0:02:59]}  h5 {[%clk 0:02:54]} 4. Bc4 {[%clk 0:02:58]}  c6 {[%clk 0:02:52]} 5. Nf3 {[%clk 0:02:57]}  d6 {[%clk 0:02:51]} 6. d4 {[%clk 0:02:57]}  Bg4 {[%clk 0:02:51]} 7. Be3 {[%clk 0:02:56]}  e6 {[%clk 0:02:50]} 8. d5 {[%clk 0:02:47]}  cxd5 {[%clk 0:02:48]} 9. exd5 {[%clk 0:02:48]}  e5 {[%clk 0:02:49]} 10. Qd2 {[%clk 0:02:43]}  Bxf3 {[%clk 0:02:43]} 11. gxf3 {[%clk 0:02:44]}  Ne7 {[%clk 0:02:44]} 12. Bb5+ {[%clk 0:02:43]}  Nd7 {[%clk 0:02:43]} 13. Ne4 {[%clk 0:02:43]}  Nf5 {[%clk 0:02:40]} 14. Bg5 {[%clk 0:02:40]}  Qc7 {[%clk 0:02:41]} 15. Bf6 {[%clk 0:02:34]}  O-O {[%clk 0:02:39]} 16. Bxg7 {[%clk 0:02:33]}  Kxg7 {[%clk 0:02:39]} 17. Bxd7 {[%clk 0:02:32]}  Qxd7 {[%clk 0:02:40]} 18. O-O-O {[%clk 0:02:31]}  Rac8 {[%clk 0:02:38]} 19. Kb1 {[%clk 0:02:30]}  Rc4 {[%clk 0:02:32]} 20. c3 {[%clk 0:02:29]}  b5 {[%clk 0:02:30]} 21. Rhg1 {[%clk 0:02:29]}  Qe7 {[%clk 0:02:15]} 22. Rg5 {[%clk 0:02:26]}  Nxh4 {[%clk 0:02:15]} 23. Qe3 {[%clk 0:02:10]}  b4 {[%clk 0:02:07]} 24. Rh1 {[%clk 0:02:00]}  Nxf3 {[%clk 0:01:55]} 25. Qxf3 {[%clk 0:01:57]}  Rxe4 {[%clk 0:01:54]} 26. Qxh5 {[%clk 0:01:45]}  bxc3 {[%clk 0:01:43]} 27. Rg3 {[%clk 0:01:26]}  c2+ {[%clk 0:01:33]} 28. Kc1 {[%clk 0:01:24]}  Re8 {[%clk 0:00:48]} 29. Qh6+ {[%clk 0:01:12]}  Kf6 {[%clk 0:00:47]} 30. Qg5+ {[%clk 0:00:59]}  Kg7 {[%clk 0:00:47]} 31. Qh6+ {[%clk 0:00:59]}  Kf6 {[%clk 0:00:47]} 32. Rf3+ {[%clk 0:01:00]}  Rf4 {[%clk 0:00:46]} 33. Qh4+ {[%clk 0:00:55]}  Kf5 {[%clk 0:00:34]} 34. Qh3+ {[%clk 0:00:54]}  Kf6 {[%clk 0:00:34]} 35. Qh4+ {[%clk 0:00:43]}  g5 {[%clk 0:00:33]} 36. Qh6+ {[%clk 0:00:42]}  Kf5 {[%clk 0:00:34]} 37. Qh7+ {[%clk 0:00:42]} 1-0


[Site "https://www.chess.com"]